[Event "Titled Tuesday Blitz June 20 Late 2023"]
[White "Ingebretsen, Jens E"]
[Black "Dilmukhametov, Artur"]
[WhiteFideId "1522965"]
[BlackFideId "24179922"]
[WhiteElo "2213"]
[BlackElo "2242"]
[Result "0-1"]
[Round "1"]
[TimeControl "180+2"]
[Date "2023.06.20"]
[WhiteClock "0:00:16"]
[BlackClock "0:01:16"]
[Board "151"]

1. c4 {[%clk 0:02:59]}  c6 {[%clk 0:02:56]} 2. d4 {[%clk 0:02:58]}  d5 {[%clk 0:02:54]} 3. cxd5 {[%clk 0:02:59]}  cxd5 {[%clk 0:02:52]} 4. Nc3 {[%clk 0:03:00]}  Nc6 {[%clk 0:02:52]} 5. Nf3 {[%clk 0:03:00]}  Nf6 {[%clk 0:02:53]} 6. Bf4 {[%clk 0:03:00]}  Bf5 {[%clk 0:02:53]} 7. e3 {[%clk 0:03:00]}  e6 {[%clk 0:02:53]} 8. a3 {[%clk 0:03:00]}  Be7 {[%clk 0:02:53]} 9. Bd3 {[%clk 0:02:59]}  Bxd3 {[%clk 0:02:53]} 10. Qxd3 {[%clk 0:02:59]}  Nh5 {[%clk 0:02:53]} 11. Bg3 {[%clk 0:02:59]}  Nxg3 {[%clk 0:02:53]} 12. hxg3 {[%clk 0:03:00]}  h6 {[%clk 0:02:53]} 13. g4 {[%clk 0:02:54]}  Rc8 {[%clk 0:02:51]} 14. e4 {[%clk 0:02:44]}  dxe4 {[%clk 0:02:49]} 15. Nxe4 {[%clk 0:02:45]}  Qb6 {[%clk 0:02:42]} 16. Rb1 {[%clk 0:02:24]}  Rd8 {[%clk 0:02:40]} 17. Rd1 {[%clk 0:02:10]}  Qxb2 {[%clk 0:02:37]} 18. O-O {[%clk 0:02:05]}  Qxa3 {[%clk 0:02:38]} 19. Qb5 {[%clk 0:02:01]}  Qb4 {[%clk 0:02:38]} 20. Qd3 {[%clk 0:01:49]}  Qb6 {[%clk 0:02:24]} 21. Rb1 {[%clk 0:01:36]}  Qc7 {[%clk 0:02:24]} 22. Qb5 {[%clk 0:01:37]}  Rd7 {[%clk 0:02:12]} 23. Rfc1 {[%clk 0:01:26]}  O-O {[%clk 0:02:12]} 24. Ne5 {[%clk 0:01:25]}  Rxd4 {[%clk 0:02:13]} 25. Nxc6 {[%clk 0:01:19]}  bxc6 {[%clk 0:02:13]} 26. Rxc6 {[%clk 0:01:18]}  Qf4 {[%clk 0:02:03]} 27. f3 {[%clk 0:01:19]}  Qe3+ {[%clk 0:01:51]} 28. Kh1 {[%clk 0:01:16]}  Rfd8 {[%clk 0:01:51]} 29. Rcc1 {[%clk 0:01:12]}  Bh4 {[%clk 0:01:33]} 30. Qh5 {[%clk 0:01:05]}  Bg5 {[%clk 0:01:25]} 31. Re1 {[%clk 0:01:03]}  Qf4 {[%clk 0:01:24]} 32. Nxg5 {[%clk 0:00:32]}  Qxg5 {[%clk 0:01:25]} 33. Qxg5 {[%clk 0:00:32]}  hxg5 {[%clk 0:01:26]} 34. Ra1 {[%clk 0:00:30]}  R8d7 {[%clk 0:01:23]} 35. Ra5 {[%clk 0:00:30]}  Rd1 {[%clk 0:01:21]} 36. Rxd1 {[%clk 0:00:26]}  Rxd1+ {[%clk 0:01:20]} 37. Kh2 {[%clk 0:00:27]}  Rd7 {[%clk 0:01:14]} 38. Rxg5 {[%clk 0:00:27]}  Rd5 {[%clk 0:01:14]} 39. Rxd5 {[%clk 0:00:16]}  exd5 {[%clk 0:01:15]} 40. Kg3 {[%clk 0:00:16]}  a5 {[%clk 0:01:15]} 41. Kf2 {[%clk 0:00:17]}  a4 {[%clk 0:01:15]} 42. Ke2 {[%clk 0:00:16]}  a3 {[%clk 0:01:16]} 0-1


[Site "https://www.chess.com"]

[Event "Titled Tuesday Blitz June 20 Late 2023"]
[White "Gubajdullin, Alexei"]
[Black "Schut, Han"]
[WhiteFideId "4141202"]
[BlackFideId "1005561"]
[WhiteElo "2279"]
[BlackElo "2024"]
[Result "1/2-1/2"]
[Round "1"]
[TimeControl "180+2"]
[Date "2023.06.20"]
[WhiteClock "0:00:16"]
[BlackClock "0:00:14"]
[Board "153"]

1. d4 {[%clk 0:03:00]}  Nf6 {[%clk 0:02:59]} 2. Nf3 {[%clk 0:03:00]}  g6 {[%clk 0:03:00]} 3. Bf4 {[%clk 0:03:00]}  Bg7 {[%clk 0:03:00]} 4. e3 {[%clk 0:03:00]}  O-O {[%clk 0:03:00]} 5. Be2 {[%clk 0:03:00]}  b6 {[%clk 0:03:01]} 6. O-O {[%clk 0:03:00]}  Bb7 {[%clk 0:03:01]} 7. h3 {[%clk 0:03:00]}  Ne4 {[%clk 0:03:01]} 8. a4 {[%clk 0:02:59]}  d6 {[%clk 0:03:01]} 9. a5 {[%clk 0:02:59]}  a6 {[%clk 0:02:52]} 10. axb6 {[%clk 0:02:58]}  cxb6 {[%clk 0:02:53]} 11. c4 {[%clk 0:02:57]}  d5 {[%clk 0:02:47]} 12. Nc3 {[%clk 0:02:41]}  Nxc3 {[%clk 0:02:46]} 13. bxc3 {[%clk 0:02:41]}  dxc4 {[%clk 0:02:46]} 14. Bxc4 {[%clk 0:02:39]}  b5 {[%clk 0:02:46]} 15. Be2 {[%clk 0:02:37]}  Nc6 {[%clk 0:02:40]} 16. Nd2 {[%clk 0:02:36]}  e5 {[%clk 0:02:38]} 17. Bg3 {[%clk 0:02:35]}  exd4 {[%clk 0:02:36]} 18. cxd4 {[%clk 0:02:35]}  Qb6 {[%clk 0:02:15]} 19. Nb3 {[%clk 0:02:34]}  Rad8 {[%clk 0:02:06]} 20. Qe1 {[%clk 0:02:21]}  f5 {[%clk 0:01:56]} 21. Bh4 {[%clk 0:02:16]}  Rde8 {[%clk 0:01:41]} 22. Nc5 {[%clk 0:02:13]}  Rf7 {[%clk 0:01:32]} 23. Nxb7 {[%clk 0:02:12]}  Qxb7 {[%clk 0:01:32]} 24. Qd1 {[%clk 0:02:03]}  f4 {[%clk 0:01:27]} 25. Ra3 {[%clk 0:01:30]}  Bh6 {[%clk 0:01:09]} 26. exf4 {[%clk 0:01:04]}  Bxf4 {[%clk 0:00:51]} 27. Bf3 {[%clk 0:01:02]}  Qd7 {[%clk 0:00:39]} 28. Rd3 {[%clk 0:00:56]}  Nb4 {[%clk 0:00:35]} 29. Rb3 {[%clk 0:00:54]}  a5 {[%clk 0:00:36]} 30. d5 {[%clk 0:00:46]}  g5 {[%clk 0:00:27]} 31. Bg3 {[%clk 0:00:45]}  Bxg3 {[%clk 0:00:28]} 32. fxg3 {[%clk 0:00:45]}  Qd6 {[%clk 0:00:28]} 33. Rf2 {[%clk 0:00:42]}  Ref8 {[%clk 0:00:24]} 34. g4 {[%clk 0:00:38]}  Rf4 {[%clk 0:00:22]} 35. Re2 {[%clk 0:00:37]}  a4 {[%clk 0:00:22]} 36. Rbe3 {[%clk 0:00:36]}  Nc6 {[%clk 0:00:11]} 37. Re6 {[%clk 0:00:31]}  Qc5+ {[%clk 0:00:11]} 38. Kh2 {[%clk 0:00:30]}  Nd4 {[%clk 0:00:12]} 39. Rd2 {[%clk 0:00:18]}  Nxf3+ {[%clk 0:00:10]} 40. gxf3 {[%clk 0:00:17]}  Rxf3 {[%clk 0:00:11]} 41. Ree2 {[%clk 0:00:17]}  Rf2+ {[%clk 0:00:10]} 42. Rxf2 {[%clk 0:00:16]}  Rxf2+ {[%clk 0:00:11]} 43. Rxf2 {[%clk 0:00:17]}  Qxf2+ {[%clk 0:00:12]} 44. Kh1 {[%clk 0:00:17]}  Qg3 {[%clk 0:00:12]} 45. d6 {[%clk 0:00:16]}  Qxh3+ {[%clk 0:00:12]} 46. Kg1 {[%clk 0:00:16]}  Qg3+ {[%clk 0:00:13]} 47. Kf1 {[%clk 0:00:16]}  Qf4+ {[%clk 0:00:14]} 48. Kg1 {[%clk 0:00:16]}  Qg3+ {[%clk 0:00:14]} 49. Kf1 {[%clk 0:00:16]}  Qf4+ {[%clk 0:00:14]} 50. Kg2 {[%clk 0:00:16]}  Qe4+ {[%clk 0:00:13]} 51. Kg3 {[%clk 0:00:16]}  Qe5+ {[%clk 0:00:13]} 52. Kh3 {[%clk 0:00:16]}  Qe3+ {[%clk 0:00:14]} 53. Kg2 {[%clk 0:00:16]}  Qe4+ {[%clk 0:00:14]} 54. Kf2 {[%clk 0:00:16]}  Qf4+ {[%clk 0:00:14]} 55. Kg2 {[%clk 0:00:16]}  Qe4+ {[%clk 0:00:14]} 1/2-1/2


[Site "https://www.chess.com"]

[Event "Titled Tuesday Blitz June 20 Late 2023"]
[White "Ward, Ieuan C"]
[Black "Jarmula, Lukasz"]
[WhiteFideId "406627"]
[BlackFideId "1160664"]
[WhiteElo "2257"]
[BlackElo "2372"]
[Result "1/2-1/2"]
[Round "1"]
[TimeControl "180+2"]
[Date "2023.06.20"]
[WhiteClock "0:00:12"]
[BlackClock "0:00:13"]
[Board "154"]

1. d4 {[%clk 0:03:00]}  d6 {[%clk 0:02:59]} 2. c4 {[%clk 0:03:00]}  e5 {[%clk 0:02:59]} 3. Nf3 {[%clk 0:02:59]}  e4 {[%clk 0:02:57]} 4. Nfd2 {[%clk 0:02:57]}  f5 {[%clk 0:02:55]} 5. e3 {[%clk 0:02:53]}  Nf6 {[%clk 0:02:55]} 6. Nc3 {[%clk 0:02:53]}  Be7 {[%clk 0:02:55]} 7. Be2 {[%clk 0:02:53]}  O-O {[%clk 0:02:54]} 8. O-O {[%clk 0:02:54]}  c6 {[%clk 0:02:54]} 9. d5 {[%clk 0:02:32]}  Na6 {[%clk 0:02:54]} 10. f3 {[%clk 0:02:29]}  exf3 {[%clk 0:02:43]} 11. Bxf3 {[%clk 0:02:30]}  Bd7 {[%clk 0:02:34]} 12. e4 {[%clk 0:02:25]}  fxe4 {[%clk 0:02:25]} 13. Ndxe4 {[%clk 0:02:26]}  Nxe4 {[%clk 0:02:24]} 14. Bxe4 {[%clk 0:02:23]}  Rxf1+ {[%clk 0:02:24]} 15. Qxf1 {[%clk 0:02:24]}  Nc5 {[%clk 0:02:23]} 16. Bf3 {[%clk 0:02:23]}  Bf6 {[%clk 0:02:19]} 17. Bf4 {[%clk 0:02:20]}  Bd4+ {[%clk 0:02:17]} 18. Kh1 {[%clk 0:02:20]}  Qf6 {[%clk 0:02:17]} 19. Bg3 {[%clk 0:02:10]}  Re8 {[%clk 0:02:00]} 20. Rd1 {[%clk 0:02:03]}  Be5 {[%clk 0:01:54]} 21. Bxe5 {[%clk 0:01:57]}  Qxe5 {[%clk 0:01:52]} 22. dxc6 {[%clk 0:01:48]}  bxc6 {[%clk 0:01:51]} 23. Rd2 {[%clk 0:01:19]}  Qe1 {[%clk 0:01:32]} 24. Rd1 {[%clk 0:01:15]}  Qxf1+ {[%clk 0:01:25]} 25. Rxf1 {[%clk 0:01:15]}  Nd3 {[%clk 0:01:26]} 26. b3 {[%clk 0:01:11]}  Re3 {[%clk 0:01:16]} 27. Nd1 {[%clk 0:00:57]}  Re5 {[%clk 0:01:15]} 28. Kg1 {[%clk 0:00:56]}  g5 {[%clk 0:01:11]} 29. Nf2 {[%clk 0:00:55]}  Nb4 {[%clk 0:01:06]} 30. a3 {[%clk 0:00:52]}  Nc2 {[%clk 0:01:06]} 31. a4 {[%clk 0:00:52]}  Nd4 {[%clk 0:01:05]} 32. Bg4 {[%clk 0:00:49]}  Be8 {[%clk 0:01:01]} 33. b4 {[%clk 0:00:46]}  h5 {[%clk 0:00:59]} 34. Bc8 {[%clk 0:00:45]}  Bf7 {[%clk 0:00:48]} 35. c5 {[%clk 0:00:40]}  dxc5 {[%clk 0:00:46]} 36. Nd3 {[%clk 0:00:41]}  Re3 {[%clk 0:00:41]} 37. Nxc5 {[%clk 0:00:39]}  Bd5 {[%clk 0:00:41]} 38. Rd1 {[%clk 0:00:33]}  Ne2+ {[%clk 0:00:34]} 39. Kf2 {[%clk 0:00:31]}  Re8 {[%clk 0:00:35]} 40. Rxd5 {[%clk 0:00:27]}  cxd5 {[%clk 0:00:32]} 41. Be6+ {[%clk 0:00:27]}  Rxe6 {[%clk 0:00:32]} 42. Nxe6 {[%clk 0:00:27]}  Nc3 {[%clk 0:00:33]} 43. Nxg5 {[%clk 0:00:25]}  Nxa4 {[%clk 0:00:32]} 44. Ke3 {[%clk 0:00:25]}  Nb6 {[%clk 0:00:29]} 45. Kd4 {[%clk 0:00:25]}  Kg7 {[%clk 0:00:29]} 46. Ne6+ {[%clk 0:00:24]}  Kf6 {[%clk 0:00:29]} 47. Nf4 {[%clk 0:00:25]}  Kg5 {[%clk 0:00:24]} 48. Nxd5 {[%clk 0:00:25]}  Nd7 {[%clk 0:00:24]} 49. Ke4 {[%clk 0:00:21]}  h4 {[%clk 0:00:22]} 50. g3 {[%clk 0:00:19]}  hxg3 {[%clk 0:00:20]} 51. hxg3 {[%clk 0:00:19]}  Kg4 {[%clk 0:00:20]} 52. Kd4 {[%clk 0:00:17]}  Kxg3 {[%clk 0:00:20]} 53. Kc4 {[%clk 0:00:17]}  Kf3 {[%clk 0:00:19]} 54. Kb5 {[%clk 0:00:17]}  Ke4 {[%clk 0:00:19]} 55. Ne7 {[%clk 0:00:16]}  Ne5 {[%clk 0:00:15]} 56. Nc6 {[%clk 0:00:13]}  Nd3 {[%clk 0:00:12]} 57. Nxa7 {[%clk 0:00:12]}  Nxb4 {[%clk 0:00:13]} 1/2-1/2


[Site "https://www.chess.com"]

[Event "Titled Tuesday Blitz June 20 Late 2023"]
[White "MKlose11"]
[Black "Davidson, Kevin"]
[BlackFideId "2056810"]
[WhiteElo "2590"]
[BlackElo "2151"]
[Result "1-0"]
[Round "1"]
[TimeControl "180+2"]
[Date "2023.06.20"]
[WhiteClock "0:00:39"]
[BlackClock "0:00:00"]
[Board "155"]

1. e4 {[%clk 0:03:00]}  c5 {[%clk 0:02:59]} 2. Nc3 {[%clk 0:02:52]}  a6 {[%clk 0:02:58]} 3. g3 {[%clk 0:02:53]}  b5 {[%clk 0:02:58]} 4. Bg2 {[%clk 0:02:52]}  Bb7 {[%clk 0:02:59]} 5. d3 {[%clk 0:02:51]}  e6 {[%clk 0:02:59]} 6. Nh3 {[%clk 0:02:51]}  Nf6 {[%clk 0:02:58]} 7. O-O {[%clk 0:02:51]}  b4 {[%clk 0:02:59]} 8. Ne2 {[%clk 0:02:51]}  d6 {[%clk 0:02:59]} 9. f4 {[%clk 0:02:51]}  Be7 {[%clk 0:02:58]} 10. f5 {[%clk 0:02:43]}  exf5 {[%clk 0:02:55]} 11. Rxf5 {[%clk 0:02:41]}  Nc6 {[%clk 0:02:45]} 12. Rf1 {[%clk 0:02:37]}  O-O {[%clk 0:02:43]} 13. Nf2 {[%clk 0:02:34]}  Re8 {[%clk 0:02:35]} 14. Be3 {[%clk 0:02:33]}  Bf8 {[%clk 0:02:31]} 15. Qd2 {[%clk 0:02:33]}  Ne5 {[%clk 0:02:05]} 16. h3 {[%clk 0:02:32]}  g6 {[%clk 0:01:59]} 17. Nf4 {[%clk 0:02:22]}  Bg7 {[%clk 0:01:58]} 18. Rae1 {[%clk 0:02:21]}  a5 {[%clk 0:01:54]} 19. g4 {[%clk 0:02:16]}  Nfd7 {[%clk 0:01:25]} 20. Nd1 {[%clk 0:02:08]}  Qc7 {[%clk 0:01:13]} 21. Rf2 {[%clk 0:02:08]}  Rac8 {[%clk 0:01:08]} 22. Ref1 {[%clk 0:02:07]}  c4 {[%clk 0:01:07]} 23. d4 {[%clk 0:02:06]}  c3 {[%clk 0:01:07]} 24. bxc3 {[%clk 0:01:58]}  bxc3 {[%clk 0:01:07]} 25. Qc1 {[%clk 0:01:52]}  Nc4 {[%clk 0:01:06]} 26. d5 {[%clk 0:01:31]}  Nxe3 {[%clk 0:00:59]} 27. Qxe3 {[%clk 0:01:30]}  Qc4 {[%clk 0:00:43]} 28. Ne2 {[%clk 0:01:25]}  Ne5 {[%clk 0:00:37]} 29. Ndxc3 {[%clk 0:01:19]}  Ba6 {[%clk 0:00:35]} 30. g5 {[%clk 0:01:06]}  Rc7 {[%clk 0:00:32]} 31. Qb6 {[%clk 0:01:02]}  Rd7 {[%clk 0:00:13]} 32. Qxa5 {[%clk 0:00:53]}  Rb8 {[%clk 0:00:12]} 33. Qa3 {[%clk 0:00:42]}  Ra8 {[%clk 0:00:00]} 34. Qa4 {[%clk 0:00:39]} 1-0


[Site "https://www.chess.com"]

[Event "Titled Tuesday Blitz June 20 Late 2023"]
[White "Francisco_Ferrari"]
[Black "Fiorito, Francisco"]
[BlackFideId "180165"]
[WhiteElo "2249"]
[BlackElo "2319"]
[Result "0-1"]
[Round "1"]
[TimeControl "180+2"]
[Date "2023.06.20"]
[WhiteClock "0:00:03"]
[BlackClock "0:00:20"]
[Board "158"]

1. Nf3 {[%clk 0:02:56]}  d5 {[%clk 0:02:56]} 2. c4 {[%clk 0:02:56]}  d4 {[%clk 0:02:52]} 3. g3 {[%clk 0:02:56]}  Nc6 {[%clk 0:02:52]} 4. Bg2 {[%clk 0:02:53]}  e5 {[%clk 0:02:52]} 5. O-O {[%clk 0:02:53]}  Nf6 {[%clk 0:02:52]} 6. d3 {[%clk 0:02:53]}  Bc5 {[%clk 0:02:51]} 7. e3 {[%clk 0:02:54]}  O-O {[%clk 0:02:51]} 8. exd4 {[%clk 0:02:54]}  exd4 {[%clk 0:02:52]} 9. Bg5 {[%clk 0:02:53]}  h6 {[%clk 0:02:50]} 10. Bxf6 {[%clk 0:02:52]}  Qxf6 {[%clk 0:02:51]} 11. Nbd2 {[%clk 0:02:51]}  Be7 {[%clk 0:02:50]} 12. Re1 {[%clk 0:02:48]}  Bf5 {[%clk 0:02:46]} 13. Ne4 {[%clk 0:02:47]}  Qg6 {[%clk 0:02:46]} 14. Qb3 {[%clk 0:02:28]}  Rab8 {[%clk 0:02:38]} 15. a3 {[%clk 0:02:15]}  Rfe8 {[%clk 0:02:35]} 16. Qa4 {[%clk 0:01:59]}  a6 {[%clk 0:02:30]} 17. b4 {[%clk 0:01:56]}  b5 {[%clk 0:02:26]} 18. Qc2 {[%clk 0:01:52]}  bxc4 {[%clk 0:02:21]} 19. Qxc4 {[%clk 0:01:52]}  Red8 {[%clk 0:02:10]} 20. Rac1 {[%clk 0:01:22]}  Rb6 {[%clk 0:02:09]} 21. Nfd2 {[%clk 0:01:17]}  Be6 {[%clk 0:02:08]} 22. Qc2 {[%clk 0:01:13]}  a5 {[%clk 0:02:05]} 23. b5 {[%clk 0:01:11]}  Nb8 {[%clk 0:01:44]} 24. Qxc7 {[%clk 0:01:08]}  Nd7 {[%clk 0:01:44]} 25. a4 {[%clk 0:00:52]}  Rdb8 {[%clk 0:01:30]} 26. Nc4 {[%clk 0:00:43]}  Bd8 {[%clk 0:01:15]} 27. Qf4 {[%clk 0:00:31]}  R6b7 {[%clk 0:01:07]} 28. Ncd6 {[%clk 0:00:24]}  Rc7 {[%clk 0:01:08]} 29. Rxc7 {[%clk 0:00:18]}  Bxc7 {[%clk 0:01:08]} 30. Rc1 {[%clk 0:00:19]}  Bb6 {[%clk 0:01:04]} 31. h4 {[%clk 0:00:15]}  Rf8 {[%clk 0:00:59]} 32. Nc4 {[%clk 0:00:16]}  Bd8 {[%clk 0:00:58]} 33. Ne5 {[%clk 0:00:15]}  Nxe5 {[%clk 0:00:56]} 34. Qxe5 {[%clk 0:00:16]}  Qg4 {[%clk 0:00:56]} 35. Qxd4 {[%clk 0:00:15]}  Qe2 {[%clk 0:00:55]} 36. Qe3 {[%clk 0:00:13]}  Qb2 {[%clk 0:00:52]} 37. Nc5 {[%clk 0:00:12]}  Bf5 {[%clk 0:00:51]} 38. Be4 {[%clk 0:00:12]}  Bh3 {[%clk 0:00:48]} 39. Re1 {[%clk 0:00:10]}  Bb6 {[%clk 0:00:48]} 40. d4 {[%clk 0:00:09]}  Bg4 {[%clk 0:00:43]} 41. Bf3 {[%clk 0:00:09]}  Bxf3 {[%clk 0:00:43]} 42. Qxf3 {[%clk 0:00:09]}  Qxd4 {[%clk 0:00:43]} 43. Ne4 {[%clk 0:00:10]}  f5 {[%clk 0:00:40]} 44. Nc3 {[%clk 0:00:05]}  Rd8 {[%clk 0:00:39]} 45. Ne2 {[%clk 0:00:05]}  Qe5 {[%clk 0:00:38]} 46. Rf1 {[%clk 0:00:05]}  Rd2 {[%clk 0:00:38]} 47. Nf4 {[%clk 0:00:06]}  Kh7 {[%clk 0:00:35]} 48. Qb7 {[%clk 0:00:06]}  Rd6 {[%clk 0:00:35]} 49. h5 {[%clk 0:00:06]}  Qc3 {[%clk 0:00:34]} 50. Ng6 {[%clk 0:00:06]}  Qxg3+ {[%clk 0:00:34]} 51. Kh1 {[%clk 0:00:07]}  Qh3+ {[%clk 0:00:33]} 52. Kg1 {[%clk 0:00:07]}  Qg4+ {[%clk 0:00:32]} 53. Qg2 {[%clk 0:00:05]}  Qxh5 {[%clk 0:00:27]} 54. Nf8+ {[%clk 0:00:04]}  Kg8 {[%clk 0:00:28]} 55. Rc1 {[%clk 0:00:03]}  Kxf8 {[%clk 0:00:26]} 56. Rc8+ {[%clk 0:00:03]}  Bd8 {[%clk 0:00:27]} 57. Qa8 {[%clk 0:00:02]}  Rd1+ {[%clk 0:00:26]} 58. Kg2 {[%clk 0:00:01]}  Qg4+ {[%clk 0:00:26]} 59. Kh2 {[%clk 0:00:02]}  Qh4+ {[%clk 0:00:20]} 60. Kg2 {[%clk 0:00:02]}  Qh1+ {[%clk 0:00:21]} 61. Kg3 {[%clk 0:00:02]}  Qxa8 {[%clk 0:00:20]} 62. Rxa8 {[%clk 0:00:03]}  Ke7 {[%clk 0:00:21]} 63. Kf4 {[%clk 0:00:04]}  g6 {[%clk 0:00:21]} 64. Ke5 {[%clk 0:00:03]}  Bc7# {[%clk 0:00:20]} 0-1


[Site "https://www.chess.com"]

[Event "Titled Tuesday Blitz June 20 Late 2023"]
[White "TimGrutter03"]
[Black "Rodriguez Santiago, Jaime"]
[BlackFideId "3100898"]
[WhiteElo "2580"]
[BlackElo "2025"]
[Result "1-0"]
[Round "1"]
[TimeControl "180+2"]
[Date "2023.06.20"]
[WhiteClock "0:01:46"]
[BlackClock "0:01:41"]
[Board "159"]

1. d4 {[%clk 0:03:00]}  Nf6 {[%clk 0:02:58]} 2. Nc3 {[%clk 0:03:01]}  d5 {[%clk 0:02:56]} 3. Bf4 {[%clk 0:03:00]}  a6 {[%clk 0:02:55]} 4. e3 {[%clk 0:03:00]}  c5 {[%clk 0:02:53]} 5. dxc5 {[%clk 0:03:00]}  Nc6 {[%clk 0:02:52]} 6. Nf3 {[%clk 0:03:00]}  Bg4 {[%clk 0:02:50]} 7. Be2 {[%clk 0:02:53]}  e6 {[%clk 0:02:49]} 8. Na4 {[%clk 0:02:41]}  Bxc5 {[%clk 0:02:33]} 9. Nxc5 {[%clk 0:02:34]}  Qa5+ {[%clk 0:02:32]} 10. Nd2 {[%clk 0:02:27]}  Qxc5 {[%clk 0:02:30]} 11. Bxg4 {[%clk 0:02:27]}  Nxg4 {[%clk 0:02:25]} 12. Qxg4 {[%clk 0:02:28]}  O-O-O {[%clk 0:02:21]} 13. c3 {[%clk 0:02:18]}  h5 {[%clk 0:02:18]} 14. Qh3 {[%clk 0:02:04]}  Rdg8 {[%clk 0:02:10]} 15. Nb3 {[%clk 0:02:02]}  Qc4 {[%clk 0:02:08]} 16. Qf3 {[%clk 0:01:53]}  g5 {[%clk 0:02:02]} 17. Bd6 {[%clk 0:01:53]}  f5 {[%clk 0:01:57]} 18. Qe2 {[%clk 0:01:52]}  Qxe2+ {[%clk 0:01:43]} 19. Kxe2 {[%clk 0:01:53]}  g4 {[%clk 0:01:41]} 20. Rac1 {[%clk 0:01:46]} 1-0


[Site "https://www.chess.com"]

[Event "Titled Tuesday Blitz June 20 Late 2023"]
[White "Kostiukov, Alexandr"]
[Black "Isajevsky, Anton"]
[WhiteFideId "14108100"]
[BlackFideId "4142500"]
[WhiteElo "2202"]
[BlackElo "2510"]
[Result "0-1"]
[Round "1"]
[TimeControl "180+2"]
[Date "2023.06.20"]
[WhiteClock "0:00:10"]
[BlackClock "0:00:36"]
[Board "162"]

1. g3 {[%clk 0:02:59]}  c5 {[%clk 0:02:56]} 2. Bg2 {[%clk 0:02:59]}  g6 {[%clk 0:02:56]} 3. c4 {[%clk 0:02:59]}  Bg7 {[%clk 0:02:56]} 4. Nf3 {[%clk 0:03:00]}  Nc6 {[%clk 0:02:56]} 5. O-O {[%clk 0:03:01]}  d6 {[%clk 0:02:55]} 6. Nc3 {[%clk 0:03:00]}  Bf5 {[%clk 0:02:51]} 7. d3 {[%clk 0:02:59]}  Qd7 {[%clk 0:02:47]} 8. Re1 {[%clk 0:02:57]}  Nf6 {[%clk 0:02:46]} 9. Rb1 {[%clk 0:02:52]}  O-O {[%clk 0:02:45]} 10. a3 {[%clk 0:02:52]}  a5 {[%clk 0:02:03]} 11. Bd2 {[%clk 0:02:51]}  Bh3 {[%clk 0:01:59]} 12. Bh1 {[%clk 0:02:50]}  h6 {[%clk 0:01:58]} 13. Nd5 {[%clk 0:02:37]}  Nxd5 {[%clk 0:01:54]} 14. cxd5 {[%clk 0:02:38]}  Nd4 {[%clk 0:01:54]} 15. Nxd4 {[%clk 0:02:30]}  cxd4 {[%clk 0:01:54]} 16. Qb3 {[%clk 0:02:16]}  Rfc8 {[%clk 0:01:45]} 17. Rbc1 {[%clk 0:02:14]}  a4 {[%clk 0:01:38]} 18. Qb4 {[%clk 0:02:13]}  Bg4 {[%clk 0:01:38]} 19. f3 {[%clk 0:02:06]}  Bh3 {[%clk 0:01:35]} 20. Rc4 {[%clk 0:01:47]}  Rxc4 {[%clk 0:01:35]} 21. dxc4 {[%clk 0:01:48]}  Bf5 {[%clk 0:01:24]} 22. Rc1 {[%clk 0:01:39]}  h5 {[%clk 0:01:21]} 23. c5 {[%clk 0:01:34]}  dxc5 {[%clk 0:01:20]} 24. Rxc5 {[%clk 0:01:32]}  Rc8 {[%clk 0:00:57]} 25. Rxc8+ {[%clk 0:01:17]}  Qxc8 {[%clk 0:00:58]} 26. Qxa4 {[%clk 0:01:14]}  Qc5 {[%clk 0:00:57]} 27. Qe8+ {[%clk 0:00:57]}  Kh7 {[%clk 0:00:52]} 28. Kf2 {[%clk 0:00:47]}  d3+ {[%clk 0:00:45]} 29. e3 {[%clk 0:00:18]}  Qc2 {[%clk 0:00:42]} 30. Ke1 {[%clk 0:00:11]}  Qb1+ {[%clk 0:00:42]} 31. Kf2 {[%clk 0:00:11]}  Qxh1 {[%clk 0:00:42]} 32. e4 {[%clk 0:00:11]}  Qxh2+ {[%clk 0:00:42]} 33. Ke3 {[%clk 0:00:11]}  Qe2+ {[%clk 0:00:41]} 34. Kf4 {[%clk 0:00:10]}  Qxd2# {[%clk 0:00:36]} 0-1


[Site "https://www.chess.com"]

[Event "Titled Tuesday Blitz June 20 Late 2023"]
[White "Florianovitz, Derlei Alex"]
[Black "Banzea, Alexandru-Bogdan"]
[WhiteFideId "2114178"]
[BlackFideId "1232622"]
[WhiteElo "1953"]
[BlackElo "2294"]
[Result "0-1"]
[Round "1"]
[TimeControl "180+2"]
[Date "2023.06.20"]
[WhiteClock "0:00:00"]
[BlackClock "0:00:05"]
[Board "164"]

1. e4 {[%clk 0:02:59]}  c6 {[%clk 0:02:59]} 2. d4 {[%clk 0:02:54]}  d5 {[%clk 0:03:00]} 3. exd5 {[%clk 0:02:54]}  cxd5 {[%clk 0:03:00]} 4. c4 {[%clk 0:02:55]}  Nf6 {[%clk 0:03:01]} 5. Nc3 {[%clk 0:02:55]}  e6 {[%clk 0:03:01]} 6. c5 {[%clk 0:02:55]}  Be7 {[%clk 0:02:53]} 7. Nf3 {[%clk 0:02:54]}  O-O {[%clk 0:02:45]} 8. Bf4 {[%clk 0:02:50]}  Ne4 {[%clk 0:02:40]} 9. Bd3 {[%clk 0:02:45]}  f5 {[%clk 0:02:35]} 10. O-O {[%clk 0:02:42]}  Nc6 {[%clk 0:02:25]} 11. a3 {[%clk 0:02:35]}  Bf6 {[%clk 0:02:24]} 12. Ne5 {[%clk 0:02:25]}  Nxd4 {[%clk 0:02:19]} 13. Nxe4 {[%clk 0:02:15]}  dxe4 {[%clk 0:02:16]} 14. Bc4 {[%clk 0:02:13]}  g5 {[%clk 0:01:54]} 15. Bxg5 {[%clk 0:01:04]}  Bxg5 {[%clk 0:01:50]} 16. f4 {[%clk 0:01:02]}  exf3 {[%clk 0:01:43]} 17. Nxf3 {[%clk 0:01:02]}  Nxf3+ {[%clk 0:01:38]} 18. Rxf3 {[%clk 0:01:03]}  Qxd1+ {[%clk 0:01:29]} 19. Rxd1 {[%clk 0:01:03]}  Rd8 {[%clk 0:01:29]} 20. Rxd8+ {[%clk 0:01:02]}  Bxd8 {[%clk 0:01:27]} 21. Rxf5 {[%clk 0:01:03]}  Bd7 {[%clk 0:01:20]} 22. Rf1 {[%clk 0:00:55]}  Be7 {[%clk 0:00:51]} 23. b4 {[%clk 0:00:55]}  Rd8 {[%clk 0:00:48]} 24. Rd1 {[%clk 0:00:51]}  Bc8 {[%clk 0:00:43]} 25. Re1 {[%clk 0:00:48]}  Kf7 {[%clk 0:00:37]} 26. Re3 {[%clk 0:00:46]}  Bf6 {[%clk 0:00:29]} 27. Rh3 {[%clk 0:00:43]}  Rd4 {[%clk 0:00:13]} 28. Be2 {[%clk 0:00:36]}  Rd2 {[%clk 0:00:11]} 29. Bf3 {[%clk 0:00:33]}  Bd4+ {[%clk 0:00:09]} 30. Kf1 {[%clk 0:00:33]}  b6 {[%clk 0:00:07]} 31. c6 {[%clk 0:00:28]}  Ba6+ {[%clk 0:00:06]} 32. Ke1 {[%clk 0:00:28]}  Ra2 {[%clk 0:00:04]} 33. Rxh7+ {[%clk 0:00:24]}  Kf6 {[%clk 0:00:04]} 34. Rxa7 {[%clk 0:00:21]}  Bc3+ {[%clk 0:00:04]} 35. Kd1 {[%clk 0:00:00]}  Bd3 {[%clk 0:00:05]} 0-1


[Site "https://www.chess.com"]

[Event "Titled Tuesday Blitz June 20 Late 2023"]
[White "Navia Alvarez, Edwin Adrian"]
[Black "Sharan, Rao"]
[WhiteFideId "4402898"]
[BlackFideId "5073464"]
[WhiteElo "1992"]
[BlackElo "2149"]
[Result "0-1"]
[Round "1"]
[TimeControl "180+2"]
[Date "2023.06.20"]
[WhiteClock "0:01:34"]
[BlackClock "0:02:23"]
[Board "166"]

1. d4 {[%clk 0:02:56]}  d5 {[%clk 0:02:47]} 2. Bf4 {[%clk 0:02:56]}  g6 {[%clk 0:02:42]} 3. Nc3 {[%clk 0:02:55]}  Bg7 {[%clk 0:02:43]} 4. Qd2 {[%clk 0:02:49]}  c6 {[%clk 0:02:42]} 5. O-O-O {[%clk 0:02:49]}  b5 {[%clk 0:02:41]} 6. h4 {[%clk 0:02:43]}  h5 {[%clk 0:02:40]} 7. f3 {[%clk 0:02:38]}  Nf6 {[%clk 0:02:39]} 8. e3 {[%clk 0:02:37]}  a5 {[%clk 0:02:38]} 9. Bd3 {[%clk 0:02:37]}  a4 {[%clk 0:02:37]} 10. Nh3 {[%clk 0:02:30]}  Nbd7 {[%clk 0:02:35]} 11. a3 {[%clk 0:02:13]}  Nb6 {[%clk 0:02:35]} 12. Na2 {[%clk 0:02:13]}  Nc4 {[%clk 0:02:31]} 13. Qe2 {[%clk 0:02:11]}  Bf5 {[%clk 0:02:28]} 14. Ng5 {[%clk 0:01:59]}  Qd7 {[%clk 0:02:24]} 15. e4 {[%clk 0:01:51]}  dxe4 {[%clk 0:02:24]} 16. fxe4 {[%clk 0:01:51]}  Bg4 {[%clk 0:02:24]} 17. Qe3 {[%clk 0:01:34]}  Nxe3 {[%clk 0:02:23]} 0-1


[Site "https://www.chess.com"]